bitfinex/quotes_BTCUSD_20250108
["timestamp","ask_amount","ask_price","bid_price","bid_amount"]
[1736364103194,0.15131888,94786.0,94756.0,0.1396885]
[1736364103407,0.211064,94758.0,94756.0,0.0943885]
[1736364103855,0.00284677,94757.0,94756.0,0.0943885]
[1736364104082,0.10714653,94757.0,94733.0,0.471738]
[1736364104297,0.211084,94749.0,94737.0,0.211109]
[1736364104678,0.00284657,94748.0,94741.0,0.2111]
[1736364105112,0.21108,94751.0,94740.0,0.211103]
[1736364105561,0.21108,94751.0,94735.0,0.211115]
[1736364105771,0.001,94749.0,94738.0,0.211107]
[1736364105958,0.21108,94751.0,94738.0,0.211107]
[1736364106363,0.002,94751.0,94734.0,0.211117]
[1736364106818,0.211086,94748.0,94733.0,0.33802282]
[1736364107207,0.211095,94744.0,94734.0,0.211117]
[1736364107609,0.211107,94739.0,94733.0,0.05000482]
[1736364107811,0.211105,94740.0,94733.0,0.00050482]
[1736364108233,0.42221,94740.0,94733.0,0.00050482]
[1736364108440,0.10429976,94750.0,94733.0,0.00050482]
[1736364108644,0.211114,94736.0,94734.0,0.001]
[1736364108843,0.211114,94736.0,94733.0,0.00050482]
[1736364109052,0.211115,94735.0,94733.0,0.00050482]
[1736364109264,0.00131953,94734.0,94733.0,0.00150482]
[1736364109558,0.211115,94735.0,94733.0,0.00050482]
[1736364110160,0.00131957,94734.0,94733.0,0.00050482]
[1736364111098,0.00131957,94734.0,94733.0,0.00150482]
[1736364111300,0.211119,94733.0,94716.0,0.15]
[1736364111633,0.211121,94732.0,94719.0,0.00015129]
[1736364111837,0.00131964,94731.0,94719.0,0.00015129]
[1736364112031,0.211142,94723.0,94719.0,0.00015129]
[1736364112865,0.422284,94723.0,94719.0,0.00015129]
[1736364113097,0.211142,94723.0,94719.0,0.00015129]
[1736364113655,0.211146,94721.0,94719.0,0.00015129]
[1736364115082,0.211146,94721.0,94719.0,0.00115129]
[1736364115283,0.10561955,94720.0,94719.0,0.00115129]
[1736364115489,0.10561955,94720.0,94719.0,0.00215129]
[1736364116271,0.10561955,94720.0,94689.0,0.361217]
[1736364116520,0.211184,94705.0,94698.0,0.00015141]
[1736364116728,0.211192,94701.0,94698.0,0.00015141]
[1736364116954,0.21115,94719.0,94698.0,0.00015141]
[1736364117148,0.211184,94704.0,94698.0,0.00015141]
[1736364117382,0.211179,94706.0,94698.0,0.00015141]
[1736364117586,0.10429976,94718.0,94699.0,0.211195]
[1736364117792,0.00131986,94717.0,94698.0,0.00015141]
[1736364118002,0.211177,94707.0,94698.0,0.00015141]
[1736364118207,0.211182,94705.0,94698.0,0.00015141]
[1736364118409,0.003,94720.0,94698.0,0.00015141]
[1736364118589,0.005,94704.0,94698.0,0.00015141]
[1736364118737,0.211155,94717.0,94703.0,0.211186]
[1736364118946,0.31845476,94717.0,94703.0,0.211186]
[1736364119186,0.32745476,94717.0,94698.0,0.21134841]
[1736364119375,0.32745476,94717.0,94704.0,0.422368]
[1736364119560,0.32745476,94717.0,94708.0,0.15]
[1736364119561,0.009,94717.0,94708.0,0.15]
[1736364119757,0.009,94717.0,94716.0,0.211157]
[1736364120181,0.009,94717.0,94710.0,0.21117]
[1736364120356,0.211138,94725.0,94714.0,0.21116]
[1736364120773,0.211138,94725.0,94707.0,0.211175]
[1736364120774,0.01715978,94724.0,94707.0,0.211175]
[1736364120979,0.01715978,94724.0,94706.0,0.5365]
[1736364120980,0.211162,94714.0,94706.0,0.5365]
[1736364121178,0.21117,94711.0,94706.0,0.5365]
[1736364121377,0.21117,94711.0,94698.0,0.21134741]
[1736364121378,0.211177,94708.0,94698.0,0.00015141]
[1736364121576,0.00131992,94707.0,94698.0,0.00015141]
[1736364121808,0.00131992,94707.0,94698.0,0.21134841]
[1736364121970,0.211164,94713.0,94698.0,0.00015141]
[1736364122367,0.211164,94713.0,94700.0,0.211193]
[1736364122566,0.21117,94710.0,94698.0,0.00015141]
[1736364122776,0.002,94711.0,94698.0,0.00015141]
[1736364122777,0.211193,94700.0,94698.0,0.00015141]
[1736364123017,0.10561986,94699.0,94698.0,0.00015141]
[1736364123434,0.20561986,94699.0,94698.0,0.00015141]
[1736364123645,0.20429976,94699.0,94698.0,0.00015141]
[1736364123850,0.35429976,94699.0,94698.0,0.00015141]
[1736364124059,0.54742604,94699.0,94698.0,0.00015141]
[1736364124696,0.57758987,94699.0,94698.0,0.00015141]
[1736364125048,0.56858987,94699.0,94698.0,0.00015141]
[1736364125227,0.58358987,94699.0,94698.0,0.00115141]
[1736364125767,0.56858987,94699.0,94698.0,0.00015141]
[1736364125976,0.47546359,94699.0,94698.0,0.00015141]
[1736364126171,0.633612,94695.0,94666.0,0.1904184]
[1736364126371,0.211255,94673.0,94660.0,0.21128]
[1736364126913,0.10562019,94672.0,94656.0,0.5365]
[1736364127173,0.11618221,94672.0,94654.0,0.00050501]
[1736364127374,0.211285,94659.0,94654.0,0.00050501]
[1736364127610,0.10429976,94672.0,94654.0,0.00050501]
[1736364127800,0.211275,94664.0,94654.0,0.00050501]
[1736364127983,0.211278,94662.0,94654.0,0.00050501]
[1736364128216,0.31557776,94662.0,94654.0,0.00050501]
[1736364128414,0.10429976,94662.0,94654.0,0.00050501]
[1736364128618,0.10398029,94662.0,94654.0,0.00050501]
[1736364128777,0.21126,94670.0,94655.0,0.211293]
[1736364128955,0.21127,94666.0,94656.0,0.211291]
[1736364129374,0.001,94662.0,94656.0,0.211291]
[1736364130576,0.001,94662.0,94654.0,0.00050501]
[1736364130799,0.211287,94658.0,94654.0,0.00050501]
[1736364131010,0.1056206,94657.0,94654.0,0.00050501]
[1736364131212,0.211291,94656.0,94654.0,0.00050501]
[1736364131413,0.10429976,94655.0,94654.0,0.00050501]
[1736364131644,0.21128,94661.0,94654.0,0.00050501]
[1736364131837,0.002,94666.0,94654.0,0.00050501]
[1736364132044,0.12694686,94665.0,94654.0,0.00050501]
[1736364132244,0.21128,94661.0,94654.0,0.00050501]
[1736364132448,0.002,94656.0,94654.0,0.00050501]
[1736364133086,0.211291,94656.0,94654.0,0.00050501]
[1736364133236,0.10429976,94665.0,94654.0,0.00050501]
[1736364133444,0.211275,94663.0,94654.0,0.00050501]
[1736364133672,0.1056204,94662.0,94654.0,0.00050501]
[1736364133868,0.006,94661.0,94655.0,0.0799]
[1736364134082,0.211264,94669.0,94655.0,0.0799]
[1736364134257,0.004,94665.0,94655.0,0.0799]
[1736364134677,0.001,94665.0,94657.0,0.211289]
[1736364134877,0.002,94661.0,94657.0,0.211289]
[1736364135301,0.211257,94671.0,94658.0,0.211286]
[1736364135503,0.004,94665.0,94658.0,0.211286]
[1736364135938,0.004,94665.0,94657.0,0.0471]
[1736364135939,0.003,94665.0,94657.0,0.0471]
[1736364136230,0.003,94665.0,94657.0,0.02509999]
[1736364136431,0.003,94665.0,94654.0,0.00050501]
[1736364136432,0.10429976,94664.0,94654.0,0.00050501]
[1736364136604,0.211293,94655.0,94654.0,0.00050501]
[1736364137164,0.31559276,94655.0,94654.0,0.00050501]
[1736364138246,0.31959276,94655.0,94654.0,0.00050501]
[1736364139034,0.32059276,94655.0,94654.0,0.00050501]
[1736364139797,0.005,94655.0,94654.0,0.00050501]
[1736364140001,0.005,94655.0,94654.0,0.07760501]
[1736364140215,0.005,94655.0,94654.0,0.08819075]
[1736364140422,0.005,94655.0,94654.0,0.07760501]
[1736364141308,0.005,94655.0,94654.0,0.055605]
[1736364141503,0.211269,94666.0,94655.0,0.211293]
[1736364141704,0.21128,94661.0,94654.0,0.055605]
[1736364141921,0.211269,94666.0,94654.0,0.055605]
[1736364141922,0.004,94655.0,94654.0,0.055605]
[1736364142121,0.211269,94666.0,94654.0,0.055605]
[1736364142325,0.211262,94670.0,94655.0,0.211293]
[1736364142524,0.00132053,94669.0,94659.0,0.211284]
[1736364143018,0.211252,94674.0,94659.0,0.211284]
[1736364143601,0.422504,94674.0,94659.0,0.211284]
[1736364144238,0.211243,94678.0,94659.0,0.211284]
[1736364144446,0.211243,94678.0,94654.0,0.055605]
[1736364144447,0.10562022,94677.0,94654.0,0.055605]
[1736364144670,0.1,94665.0,94633.0,0.0806]
[1736364144870,0.1056206,94664.0,94633.0,0.0806]
[1736364145045,0.03208206,94663.0,94634.0,0.21134]
[1736364145248,0.10429976,94662.0,94644.0,0.211317]
[1736364145415,0.211299,94653.0,94633.0,0.0806]
[1736364146334,0.10429976,94662.0,94633.0,0.0806]
[1736364146538,0.211293,94655.0,94640.0,0.211324]
[1736364146731,0.002,94662.0,94634.0,0.173]
[1736364146997,0.002,94662.0,94636.0,0.173]
[1736364147193,0.211289,94657.0,94645.0,0.211314]
[1736364147811,0.211298,94653.0,94642.0,0.211321]
[1736364147939,0.10429976,94653.0,94637.0,0.5365]
[1736364148145,0.10562046,94652.0,94638.0,0.211331]
[1736364148390,0.005,94662.0,94637.0,0.5365]
[1736364148564,0.0013207,94676.0,94639.0,0.081]
[1736364148767,0.003,94657.0,94643.0,0.15]
[1736364148970,0.001,94653.0,94643.0,0.15]
[1736364149169,0.001,94653.0,94648.0,0.211308]
[1736364149452,0.211284,94660.0,94648.0,0.211308]
[1736364149698,0.211274,94664.0,94652.0,0.211299]
[1736364149953,0.211282,94660.0,94643.0,0.6865]
[1736364150309,0.211282,94660.0,94649.0,0.211305]
[1736364150670,0.003,94652.0,94649.0,0.211305]
[1736364150976,0.31557676,94663.0,94653.0,0.211297]
[1736364151187,0.0001,94665.0,94664.0,0.211273]
[1736364151393,0.0001,94665.0,94664.0,0.747773]
[1736364151592,0.0001,94665.0,94664.0,0.795873]
[1736364151797,0.0001,94665.0,94664.0,1.07317276]
[1736364151997,0.211167,94712.0,94676.0,0.211246]
[1736364152199,0.211159,94716.0,94676.0,1.10444576]
[1736364152424,0.211168,94711.0,94676.0,1.15174576]
[1736364152959,0.211159,94716.0,94676.0,1.15174576]
[1736364153126,0.00131991,94715.0,94676.0,1.15174576]
[1736364153348,0.211167,94712.0,94676.0,1.15174576]
[1736364153751,0.211178,94707.0,94676.0,1.15174576]
[1736364153933,0.211196,94699.0,94676.0,1.024446]
[1736364154458,0.211211,94692.0,94680.0,0.211236]
[1736364154697,0.211206,94694.0,94680.0,0.211236]
[1736364154698,0.422412,94694.0,94680.0,0.211236]
[1736364155027,0.211106,94740.0,94680.0,0.211236]
[1736364155028,0.21116,94715.0,94683.0,0.15]
[1736364155237,0.1,94767.0,94682.0,0.445466]
[1736364155238,0.00015119,94714.0,94707.0,0.0806]
[1736364155443,0.00015119,94714.0,94713.0,0.211164]
[1736364155646,0.00015119,94714.0,94713.0,0.361164]
[1736364156286,0.00015119,94714.0,94713.0,0.18916399]
[1736364156650,0.21113,94729.0,94713.0,0.18916399]
[1736364156829,0.211133,94727.0,94713.0,0.18916399]
[1736364157039,0.211133,94727.0,94708.0,0.15]
[1736364157040,0.10429976,94727.0,94708.0,0.15]
[1736364157245,0.31675447,94726.0,94707.0,0.7114562]
[1736364157449,0.31543476,94726.0,94708.0,0.211175]
[1736364157654,0.00131981,94725.0,94713.0,0.001]
[1736364157948,0.006,94715.0,94713.0,0.001]
[1736364158327,0.211144,94722.0,94708.0,0.211175]
[1736364158560,0.211148,94720.0,94708.0,0.211175]
[1736364159195,0.10429976,94721.0,94708.0,0.211175]
[1736364159437,0.10561957,94721.0,94708.0,0.42235]
[1736364160646,0.004,94722.0,94720.0,0.211148]
[1736364160877,0.004,94722.0,94718.0,0.211152]
[1736364161095,0.001,94720.0,94714.0,0.21116]
[1736364161290,0.001,94720.0,94714.0,0.18915999]
[1736364161630,0.00131971,94728.0,94719.0,0.21115]
[1736364161824,0.001,94722.0,94707.0,0.5365]
[1736364162263,0.10561947,94721.0,94708.0,0.211175]
[1736364162452,0.003,94720.0,94709.0,0.211173]
[1736364162650,0.003,94720.0,94707.0,0.5365]
[1736364162857,0.003,94720.0,94704.0,0.211182]
[1736364163056,0.003,94720.0,94704.0,0.21133319]
[1736364163397,0.003,94720.0,94708.0,0.211173]
[1736364163607,0.21115,94719.0,94705.0,0.211182]
[1736364163825,0.211172,94710.0,94704.0,0.00015119]
[1736364164024,0.10561974,94709.0,94704.0,0.00015119]
[1736364164377,0.211181,94706.0,94704.0,0.00015119]
[1736364164588,0.1056198,94705.0,94704.0,0.00015119]
[1736364166187,0.5698198,94705.0,94704.0,1.9e-07]
[1736364166397,0.211225,94686.0,94673.0,0.211252]
[1736364166549,0.00015127,94705.0,94679.0,0.211237]
[1736364166751,0.10429976,94701.0,94663.0,0.0824]
[1736364166950,0.00015127,94705.0,94663.0,0.0824]
[1736364166951,0.211232,94683.0,94665.0,0.211271]
[1736364167235,0.31685313,94682.0,94666.0,0.211269]
[1736364167482,0.211237,94680.0,94666.0,0.211269]
[1736364167687,0.008,94686.0,94663.0,0.2324]
[1736364167829,0.00132024,94693.0,94664.0,0.12729976]
[1736364168032,0.211211,94692.0,94681.0,0.211234]
[1736364168249,0.006,94683.0,94681.0,0.211234]
[1736364168464,0.211211,94692.0,94681.0,0.211234]
[1736364168465,0.002,94682.0,94681.0,0.211234]
[1736364169046,0.211211,94692.0,94681.0,0.211234]
[1736364169557,0.211221,94688.0,94677.0,0.211242]
[1736364169796,0.211211,94692.0,94681.0,0.211233]
[1736364170311,0.211211,94692.0,94677.0,0.211242]
[1736364170512,0.005,94683.0,94681.0,0.001]
[1736364170709,0.2125433,94687.0,94671.0,0.211256]
[1736364171009,0.10429976,94686.0,94681.0,0.001]
[1736364171184,0.10562006,94686.0,94671.0,0.19025599]
[1736364171388,0.21123,94684.0,94671.0,0.19025599]
[1736364171612,0.21123,94684.0,94677.0,0.001]
[1736364171813,0.211238,94680.0,94677.0,0.001]
[1736364172013,0.21123,94684.0,94670.0,0.211258]
[1736364172461,0.211231,94683.0,94670.0,0.211258]
[1736364172799,0.211231,94683.0,94670.0,0.422518]
[1736364173419,0.001,94684.0,94675.0,0.211247]
[1736364173872,0.001,94684.0,94664.0,0.5365]
[1736364174077,0.211188,94703.0,94671.0,0.15]
[1736364174279,0.00015127,94705.0,94693.0,0.0766]
[1736364174451,0.00015127,94705.0,94704.0,0.211184]
[1736364174777,0.10445103,94705.0,94694.0,0.5365]
[1736364175108,0.00015127,94705.0,94695.0,0.211203]
[1736364175236,0.003,94703.0,94695.0,0.211204]
[1736364175445,0.003,94703.0,94702.0,0.211188]
[1736364175879,0.00215127,94705.0,94702.0,0.422376]
[1736364176100,0.00515127,94705.0,94702.0,0.422376]
[1736364176286,0.00515127,94705.0,94702.0,0.40037599]
[1736364176858,0.00315127,94705.0,94702.0,0.40037599]
[1736364177281,0.01115127,94705.0,94702.0,0.40037599]
[1736364177495,0.00315127,94705.0,94702.0,0.40037599]
[1736364177901,0.00415127,94705.0,94702.0,0.40437599]
[1736364178079,0.00115127,94705.0,94702.0,0.40437599]
[1736364178258,0.00115127,94705.0,94702.0,0.40637599]
[1736364178777,0.00115127,94705.0,94702.0,0.94087599]
[1736364179328,0.00115127,94705.0,94704.0,0.361184]
[1736364180685,0.00015127,94705.0,94704.0,0.361184]
[1736364180853,0.00115127,94705.0,94704.0,0.365184]
[1736364181066,0.00115127,94705.0,94704.0,0.004]
[1736364181276,0.00115127,94705.0,94702.0,0.52149999]
[1736364181421,0.211184,94704.0,94702.0,0.003]
[1736364181630,0.31548376,94704.0,94691.0,0.211213]
[1736364182052,0.10429976,94704.0,94695.0,0.211203]
[1736364182216,0.10429976,94704.0,94691.0,0.211213]
[1736364182422,0.211186,94703.0,94691.0,0.211213]
[1736364182923,0.10529976,94704.0,94691.0,0.211213]
[1736364183127,0.10529976,94704.0,94691.0,0.422426]
[1736364183577,0.006,94704.0,94696.0,0.211202]
[1736364183822,0.001,94704.0,94700.0,0.211192]
[1736364184024,0.00015127,94705.0,94704.0,0.211184]
[1736364184226,0.00015127,94705.0,94704.0,0.337284]
[1736364184593,0.00015127,94705.0,94704.0,0.61458376]
[1736364185561,0.00515127,94705.0,94704.0,0.61458376]
[1736364186201,0.00515127,94705.0,94704.0,0.62931778]
[1736364186394,0.00495056,94705.0,94704.0,0.62931778]
[1736364186824,0.211109,94738.0,94726.0,0.211133]
[1736364186971,0.31540976,94737.0,94708.0,0.51849999]
[1736364187192,0.10429976,94737.0,94714.0,0.21116]
[1736364187411,0.10561945,94737.0,94709.0,0.15]
[1736364187673,0.10561945,94737.0,94711.0,0.15]
[1736364187674,0.10429976,94737.0,94711.0,0.15]
[1736364188026,5.045e-05,94738.0,94727.0,0.211132]
[1736364188227,5.045e-05,94738.0,94734.0,0.211115]
[1736364188467,0.007,94737.0,94734.0,0.211115]
[1736364188710,5.045e-05,94738.0,94734.0,0.422231]
[1736364189065,0.002,94737.0,94734.0,0.422231]
[1736364189445,5.045e-05,94738.0,94734.0,0.422231]
[1736364189875,0.002,94737.0,94736.0,0.211112]
[1736364190073,0.009,94737.0,94736.0,0.211112]
[1736364190275,5.045e-05,94738.0,94736.0,0.72961199]
[1736364190529,0.00205045,94738.0,94736.0,0.72961199]
[1736364190734,0.00905045,94738.0,94736.0,0.72961199]
[1736364190963,0.00205045,94738.0,94737.0,0.27729976]
[1736364192382,0.00205045,94738.0,94737.0,0.6393441]
[1736364192588,0.0013192,94768.0,94739.0,0.15]
[1736364192824,0.211058,94761.0,94738.0,0.51849999]
[1736364193055,0.00131919,94760.0,94748.0,0.211084]
[1736364193319,0.211058,94761.0,94748.0,0.211084]
[1736364193525,0.10429976,94767.0,94741.0,0.211101]
[1736364193699,0.211058,94761.0,94748.0,0.211084]
[1736364193935,0.21105,94764.0,94748.0,0.211084]
[1736364194375,0.10561895,94763.0,94741.0,0.211101]
[1736364194587,0.211078,94752.0,94741.0,0.211101]
[1736364194948,0.211087,94748.0,94735.0,0.211115]
[1736364195172,0.211079,94751.0,94739.0,0.211105]
[1736364195370,0.211069,94756.0,94739.0,0.211104]
[1736364195371,0.00131937,94750.0,94739.0,0.211104]
[1736364195568,0.211072,94754.0,94740.0,0.211101]
[1736364195771,0.10561913,94753.0,94740.0,0.211101]
[1736364196282,0.21106,94760.0,94740.0,0.211101]
[1736364196283,0.21106,94760.0,94745.0,0.211092]
[1736364196482,0.10561907,94759.0,94745.0,0.211092]
[1736364197345,0.001,94753.0,94745.0,0.211091]
[1736364197584,0.211069,94756.0,94741.0,0.211101]
[1736364198617,0.211063,94758.0,94739.0,0.211104]
[1736364198843,0.10929976,94759.0,94736.0,0.211112]
[1736364198844,0.31668907,94755.0,94736.0,0.211112]
[1736364199015,0.211088,94748.0,94736.0,0.211112]
[1736364199627,0.211097,94743.0,94732.0,0.21112]
[1736364199792,0.211097,94743.0,94733.0,0.15]
[1736364200428,0.211097,94743.0,94736.0,0.001]
[1736364201029,0.211097,94743.0,94732.0,0.15]
[1736364201222,0.211097,94743.0,94731.0,0.49649998]
[1736364201632,0.422194,94743.0,94731.0,0.49649998]
[1736364201853,0.215097,94743.0,94732.0,0.211121]
[1736364202173,0.211097,94743.0,94732.0,0.211121]
[1736364202344,0.215097,94743.0,94732.0,0.211121]
[1736364202528,0.215097,94743.0,94731.0,0.49649998]
[1736364202726,0.216097,94743.0,94732.0,0.211121]
[1736364202933,0.10429976,94742.0,94715.0,0.14161341]
[1736364203131,0.1,94738.0,94715.0,0.14161341]
[1736364203343,0.21115,94719.0,94715.0,0.14161341]
[1736364203575,0.21115,94719.0,94716.0,0.09422281]
[1736364203576,0.52660076,94719.0,94716.0,0.09422281]
[1736364203776,0.211155,94717.0,94716.0,0.09422281]
[1736364203975,0.37336584,94717.0,94716.0,0.09422281]
[1736364204177,0.47336584,94717.0,94716.0,0.09422281]
[1736364204378,0.37336584,94717.0,94716.0,0.09422281]
[1736364204698,0.47336584,94717.0,94716.0,5.045e-05]
[1736364204903,0.31545476,94717.0,94716.0,5.045e-05]
[1736364205353,0.32345476,94717.0,94716.0,5.045e-05]
[1736364205558,0.211144,94723.0,94716.0,5.045e-05]
[1736364205761,0.211151,94719.0,94716.0,5.045e-05]
[1736364205959,0.211155,94717.0,94716.0,5.045e-05]
[1736364206114,0.31545476,94717.0,94716.0,5.045e-05]
[1736364206319,0.002,94717.0,94701.0,0.15]
[1736364206526,0.002,94717.0,94715.0,0.211158]
[1736364206725,0.01073706,94748.0,94711.0,0.211167]
[1736364206972,0.009,94717.0,94711.0,0.211167]
[1736364207157,0.011,94717.0,94706.0,0.70767798]
[1736364207362,0.211157,94716.0,94706.0,0.70767798]
[1736364207709,0.015,94717.0,94706.0,0.70767798]
[1736364207854,0.015,94717.0,94706.0,0.49649998]
[1736364207855,0.211159,94715.0,94706.0,0.49649998]
[1736364208061,0.10429976,94717.0,94706.0,0.70767798]
[1736364208271,0.10929976,94717.0,94706.0,0.70767798]
[1736364208465,0.10429976,94716.0,94706.0,0.49649998]
[1736364208825,0.211167,94712.0,94691.0,0.211211]
[1736364209035,0.10561973,94711.0,94694.0,0.01053682]
[1736364209242,0.211171,94710.0,94695.0,0.211204]
[1736364209444,0.211189,94702.0,94689.0,0.15]
[1736364209650,0.422378,94702.0,94690.0,0.211215]
[1736364209874,0.082,94724.0,94689.0,0.15]
[1736364209875,0.10561978,94701.0,94689.0,0.15]
[1736364210347,0.211193,94700.0,94690.0,0.211215]
[1736364210546,0.10429976,94699.0,94690.0,0.211215]
[1736364211872,0.211197,94698.0,94689.0,0.211217]
[1736364212122,0.10729976,94699.0,94688.0,0.15]
[1736364212361,0.003,94699.0,94688.0,0.15]
[1736364212583,0.003,94699.0,94698.0,0.15]
[1736364212792,0.003,94699.0,94698.0,0.47731976]
[1736364213171,0.0765,94749.0,94724.0,0.211138]
[1736364213172,0.211098,94743.0,94724.0,0.211138]
[1736364213351,0.31619324,94742.0,94727.0,0.211131]
[1736364213568,0.10429976,94742.0,94727.0,0.211131]
[1736364213787,0.09433178,94756.0,94729.0,0.0771]
[1736364214133,0.10429976,94755.0,94744.0,0.211093]
[1736364214342,0.211072,94754.0,94741.0,0.2111]
[1736364214545,0.009,94743.0,94741.0,0.2111]
[1736364214747,0.10429976,94753.0,94745.0,0.21109]
[1736364214962,0.10429976,94753.0,94730.0,0.15]
[1736364215172,0.31616924,94753.0,94742.0,0.211098]
[1736364215373,0.31616924,94753.0,94746.0,0.21109]
[1736364215374,0.10429976,94753.0,94746.0,0.21109]
[1736364216223,0.00015133,94755.0,94742.0,0.15]
[1736364216432,0.00015133,94755.0,94754.0,0.18907199]
[1736364216639,0.00015133,94755.0,94754.0,0.19012736]
[1736364216860,0.00015133,94755.0,94754.0,0.18907199]
[1736364217645,0.00015133,94755.0,94752.0,0.211076]
[1736364217845,0.00015133,94755.0,94747.0,0.211087]
[1736364218053,0.00015133,94755.0,94746.0,0.211089]
[1736364218328,0.00015133,94755.0,94742.0,0.361098]
[1736364218570,0.00015133,94755.0,94746.0,0.21109]
[1736364219073,0.00015133,94755.0,94743.0,0.211097]
[1736364219291,0.00015133,94755.0,94740.0,0.49649998]
[1736364219498,0.00015133,94755.0,94746.0,0.211089]
[1736364219716,0.211075,94753.0,94740.0,0.49649998]
[1736364219928,0.211085,94749.0,94737.0,0.211109]
[1736364220729,0.10429976,94752.0,94741.0,0.211101]
[1736364220958,0.422159,94751.0,94737.0,0.211109]
[1736364221087,0.211088,94748.0,94735.0,0.211115]
[1736364221310,0.211081,94750.0,94739.0,0.211105]
[1736364221492,0.211081,94750.0,94736.0,0.211112]
[1736364221920,0.00079448,94749.0,94741.0,0.211101]
[1736364222115,0.00415133,94755.0,94732.0,0.023]
[1736364222444,0.00415133,94755.0,94731.0,0.15]
[1736364222686,0.001,94749.0,94744.0,0.211094]
[1736364223267,0.00015133,94755.0,94744.0,0.211094]
[1736364223468,0.00415133,94755.0,94748.0,0.211086]
[1736364223800,0.00415133,94755.0,94730.0,0.50740226]
[1736364223801,0.00515133,94755.0,94746.0,0.21109]
[1736364224020,0.00115133,94755.0,94746.0,0.21109]
[1736364224218,0.00115133,94755.0,94743.0,0.211097]
[1736364224593,0.001,94749.0,94747.0,0.211087]
[1736364224796,0.001,94749.0,94740.0,0.01057016]
[1736364225005,0.001,94749.0,94741.0,0.211101]
[1736364225779,0.001,94749.0,94745.0,0.211092]
[1736364226298,0.00015133,94755.0,94745.0,0.18909199]
[1736364226504,0.211072,94754.0,94745.0,0.18909199]
[1736364226776,0.00215133,94755.0,94745.0,0.18909199]
[1736364227159,0.00015133,94755.0,94745.0,0.18909199]
[1736364227481,0.001,94749.0,94748.0,0.211086]
[1736364227681,0.001,94749.0,94743.0,0.211097]
[1736364227881,0.00015133,94755.0,94743.0,0.211097]
[1736364228110,0.21522233,94755.0,94743.0,0.211097]
[1736364228318,0.211079,94752.0,94741.0,0.211101]
[1736364228526,0.211089,94747.0,94740.0,0.01057016]
[1736364228729,0.211079,94751.0,94723.0,0.18881789]
[1736364228730,0.00079448,94746.0,94725.0,0.072]
[1736364228920,0.00415133,94755.0,94737.0,0.01041507]
[1736364229137,0.21522233,94755.0,94742.0,0.211098]
[1736364229313,0.42329333,94755.0,94742.0,0.211098]
[1736364229682,0.10429976,94754.0,94738.0,0.211106]
[1736364229908,0.00079448,94753.0,94738.0,0.211106]
[1736364230102,0.00115133,94755.0,94742.0,0.023]
[1736364230304,0.00115133,94755.0,94747.0,0.15]
[1736364230537,0.00515133,94755.0,94754.0,0.88057198]
[1736364230899,0.00115133,94755.0,94754.0,1.10197174]
[1736364231510,0.00015133,94755.0,94754.0,1.10197174]
[1736364231645,0.00015133,94755.0,94754.0,1.24358515]
[1736364232046,0.211017,94779.0,94768.0,0.21104]
[1736364232232,0.10509424,94778.0,94756.0,0.15]
[1736364232433,0.00079448,94782.0,94769.0,0.211037]
[1736364232682,0.211014,94780.0,94769.0,0.211037]
[1736364232923,0.00050442,94783.0,94779.0,0.211015]
[1736364233122,0.00050442,94783.0,94775.0,0.211025]
[1736364233602,0.00050442,94783.0,94776.0,0.00105512]
[1736364233805,0.00050442,94783.0,94782.0,0.21101]
[1736364234153,0.00950442,94783.0,94782.0,0.21101]
[1736364234445,0.00050442,94783.0,94782.0,0.21101]
[1736364234986,0.00050442,94783.0,94777.0,0.211021]
[1736364235390,0.00050442,94783.0,94775.0,0.57569998]
[1736364235391,0.00050442,94783.0,94775.0,0.49649998]
[1736364235596,0.31530976,94782.0,94775.0,0.49649998]
[1736364235819,0.00050442,94783.0,94775.0,0.49649998]
[1736364236218,0.00050442,94783.0,94776.0,0.18902299]
[1736364236438,0.00050442,94783.0,94775.0,0.49649998]
[1736364236439,0.21151242,94783.0,94775.0,0.49649998]
[1736364236699,0.00050442,94783.0,94776.0,0.211023]
[1736364237349,0.00050442,94783.0,94775.0,0.49649998]
[1736364237525,0.00050442,94783.0,94779.0,0.211015]
[1736364238142,0.00250442,94783.0,94779.0,0.211015]
[1736364238338,0.00250442,94783.0,94779.0,0.91853098]
[1736364238339,0.00550442,94783.0,94779.0,0.91853098]
[1736364238567,0.00550442,94783.0,94782.0,0.15]
[1736364238768,0.00550442,94783.0,94782.0,0.39889976]
[1736364239256,0.00350442,94783.0,94782.0,0.39889976]
[1736364239867,0.00350442,94783.0,94782.0,0.2255]
[1736364240265,0.00350442,94783.0,94779.0,0.71817498]
[1736364240266,0.00050442,94783.0,94779.0,0.49649998]
[1736364241240,0.00050442,94783.0,94779.0,0.47449997]
[1736364241469,0.21101,94782.0,94779.0,0.47449997]
[1736364242279,0.211025,94776.0,94762.0,0.211055]
[1736364242516,0.10509424,94775.0,94750.0,0.09446146]
[1736364242747,0.211038,94770.0,94756.0,0.01048955]
[1736364242990,0.211038,94770.0,94757.0,0.422131]
[1736364243275,0.211038,94770.0,94757.0,0.211065]
[1736364243276,0.211045,94767.0,94757.0,0.211065]
[1736364243521,0.211045,94767.0,94755.0,0.211069]
[1736364243733,0.00079448,94766.0,94755.0,0.211069]
[1736364243935,0.211038,94770.0,94751.0,0.211079]
[1736364244133,0.004,94770.0,94761.0,0.211055]
[1736364244272,0.004,94770.0,94760.0,0.211058]
[1736364244273,0.211036,94771.0,94760.0,0.211058]
[1736364244481,0.00050442,94783.0,94750.0,0.20318062]
[1736364244482,0.211046,94766.0,94752.0,0.211077]
[1736364244675,0.211046,94766.0,94750.0,0.211079]
[1736364244676,0.211059,94760.0,94750.0,0.211079]
[1736364244878,0.21105,94764.0,94753.0,0.211073]
[1736364245361,0.001,94770.0,94750.0,0.19254436]
[1736364245499,0.001,94770.0,94759.0,0.211061]
[1736364245704,0.00079448,94772.0,94762.0,0.211053]
[1736364245915,0.10429976,94771.0,94762.0,0.211053]